bitfinex/quotes_SOLUSD_20250624
["timestamp","ask_amount","ask_price","bid_price","bid_amount"]
[1750742857247,5.16728363,144.47,144.43,5.66626126]
[1750742857566,5.16728363,144.46,144.43,5.66626126]
[1750742857774,5.16728363,144.47,144.43,5.66626126]
[1750742857955,5.16728363,144.46,144.43,5.66626126]
[1750742858155,5.16728363,144.47,144.43,5.66626126]
[1750742858464,5.16728363,144.48,144.46,5.66626126]
[1750742858677,5.16728363,144.51,144.47,5.66626126]
[1750742858898,5.16728363,144.5,144.47,5.66626126]
[1750742859056,5.16728363,144.49,144.48,5.66626126]
[1750742859257,5.16728363,144.51,144.48,5.66626126]
[1750742859486,5.16728363,144.52,144.49,5.66626126]
[1750742859691,5.16728363,144.51,144.48,5.66626126]
[1750742859855,5.16728363,144.52,144.48,5.66626126]
[1750742860059,5.16728363,144.51,144.48,5.66626126]
[1750742860377,5.16728363,144.52,144.48,5.66626126]
[1750742860978,5.16728363,144.52,144.49,5.66626126]
[1750742861183,5.16728363,144.53,144.49,5.66626126]
[1750742861485,10.83354489,144.54,144.49,5.66626126]
[1750742861678,5.16728363,144.53,144.49,5.66626126]
[1750742861862,10.83354489,144.53,144.49,5.66626126]
[1750742862062,5.66626126,144.53,144.49,5.66626126]
[1750742862263,5.16728363,144.53,144.49,5.66626126]
[1750742862485,5.66626126,144.53,144.49,5.66626126]
[1750742862662,10.83354489,144.53,144.49,5.66626126]
[1750742862863,5.16728363,144.54,144.48,5.66626126]
[1750742863065,5.16728363,144.54,144.44,50.02300753]
[1750742863066,5.66626126,144.52,144.47,5.66626126]
[1750742863873,5.66626126,144.52,144.44,32.71514886]
[1750742863874,5.66626126,144.49,144.44,102.95176126]
[1750742864067,5.66626126,144.49,144.44,13.55176126]
[1750742864661,5.16728363,144.51,144.44,13.55176126]
[1750742864857,5.66626126,144.49,144.44,13.55176126]
[1750742865691,5.16728363,144.5,144.45,5.66626126]
[1750742865990,10.83354489,144.52,144.47,5.66626126]
[1750742866291,5.66626126,144.52,144.47,5.66626126]
[1750742866490,10.83354489,144.52,144.47,5.66626126]
[1750742866801,5.66626126,144.52,144.47,5.66626126]
[1750742867678,5.16728363,144.53,144.47,5.66626126]
[1750742867873,10.83354489,144.53,144.48,5.66626126]
[1750742868279,5.66626126,144.51,144.47,5.66626126]
[1750742868481,5.16728363,144.53,144.5,5.66626126]
[1750742868679,31.66626126,144.54,144.49,5.66626126]
[1750742869178,5.66626126,144.53,144.48,5.66626126]
[1750742869695,5.66626126,144.52,144.47,5.66626126]
[1750742870279,5.66626126,144.51,144.46,34.18626126]
[1750742871589,5.66626126,144.5,144.45,108.04964886]
[1750742871887,5.66626126,144.49,144.45,5.66626126]
[1750742872106,5.16728363,144.53,144.48,5.66626126]
[1750742872272,31.66626126,144.54,144.49,5.66626126]
[1750742872677,5.66626126,144.55,144.5,5.66626126]
[1750742873395,31.66626126,144.56,144.51,5.66626126]
[1750742873596,26.0,144.56,144.51,5.66626126]
[1750742873799,31.66626126,144.56,144.51,5.66626126]
[1750742874186,31.66626126,144.56,144.5,25.57006408]
[1750742874391,31.66626126,144.56,144.51,5.66626126]
[1750742876076,5.66626126,144.55,144.5,12.58667648]
[1750742876371,5.66626126,144.55,144.5,31.23632534]
[1750742877481,5.66626126,144.56,144.51,5.66626126]
[1750742878702,5.66626126,144.55,144.51,5.66626126]
[1750742879217,5.66626126,144.55,144.5,31.23632534]
[1750742882704,5.66626126,144.55,144.51,5.66626126]
[1750742883401,5.66626126,144.55,144.51,12.58615347]
[1750742883608,10.83354489,144.56,144.51,12.58615347]
[1750742883908,5.66626126,144.56,144.51,12.58615347]
[1750742884208,10.83354489,144.57,144.53,5.66626126]
[1750742884401,5.16728363,144.56,144.53,5.66626126]
[1750742885108,5.16728363,144.57,144.53,5.66626126]
[1750742885481,5.16728363,144.57,144.54,5.66626126]
[1750742885706,5.16728363,144.58,144.54,5.66626126]
[1750742885881,5.16728363,144.58,144.55,5.66626126]
[1750742886082,10.83354489,144.6,144.55,5.66626126]
[1750742886280,5.16728363,144.59,144.55,5.66626126]
[1750742886485,10.83354489,144.59,144.54,24.31591012]
[1750742886696,5.66626126,144.59,144.54,24.31591012]
[1750742886901,10.83354489,144.59,144.54,24.31591012]
[1750742887097,5.16728363,144.6,144.55,5.66626126]
[1750742887304,5.16728363,144.61,144.55,6.18]
[1750742887484,5.66626126,144.58,144.55,6.18]
[1750742887886,5.16728363,144.61,144.55,11.84626126]
[1750742888086,5.66626126,144.59,144.55,11.84626126]
[1750742888619,5.16728363,144.61,144.55,11.84626126]
[1750742888799,5.66626126,144.59,144.55,11.84626126]
[1750742889114,5.66626126,144.59,144.55,18.76425859]
[1750742889294,5.16728363,144.61,144.55,11.84626126]
[1750742889491,5.66626126,144.59,144.55,11.84626126]
[1750742891110,5.66626126,144.59,144.55,6.18]
[1750742891312,5.16728363,144.61,144.55,6.18]
[1750742891614,5.66626126,144.59,144.55,6.18]
[1750742892490,5.16728363,144.61,144.55,11.84626126]
[1750742892813,5.66626126,144.59,144.55,11.84626126]
[1750742893022,5.66626126,144.58,144.55,6.18]
[1750742895403,31.16728363,144.62,144.55,6.18]
[1750742895602,5.66626126,144.59,144.55,6.18]
[1750742897020,5.16728363,144.61,144.55,6.18]
[1750742897317,5.66626126,144.59,144.55,6.18]
[1750742899290,5.66626126,144.56,144.5,6.4474]
[1750742899502,5.66626126,144.54,144.5,41.0474]
[1750742899808,5.66626126,144.54,144.5,12.6074]
[1750742900123,5.66626126,144.53,144.5,12.6074]
[1750742900301,5.66626126,144.51,144.5,6.16]
[1750742900503,26.0,144.53,144.5,6.16]
[1750742900820,5.66626126,144.51,144.5,6.16]
[1750742902907,5.16728363,144.54,144.5,6.16]
[1750742903111,31.16728363,144.55,144.5,6.16]
[1750742903294,5.66626126,144.53,144.5,6.16]
[1750742903495,5.66626126,144.52,144.5,6.16]
[1750742903696,5.66626126,144.51,144.5,6.16]
[1750742904324,5.16728363,144.53,144.5,6.16]
[1750742904505,5.66626126,144.51,144.5,6.16]
[1750742904701,10.83354489,144.51,144.5,6.16]
[1750742905018,5.66626126,144.51,144.5,6.16]
[1750742906820,5.16728363,144.53,144.5,6.16]
[1750742907123,5.66626126,144.51,144.5,6.16]
[1750742907921,32.45910454,144.55,144.5,6.16]
[1750742907922,5.16728363,144.54,144.5,6.16]
[1750742908242,5.66626126,144.51,144.5,6.16]
[1750742908424,5.16728363,144.52,144.5,6.16]
[1750742908726,5.66626126,144.52,144.5,6.16]
[1750742909028,32.45910454,144.55,144.5,6.16]
[1750742909029,5.66626126,144.51,144.5,6.16]
[1750742910206,5.16728363,144.54,144.5,6.16]
[1750742910407,10.83354489,144.53,144.5,6.16]
[1750742910607,5.16728363,144.52,144.5,6.16]
[1750742910807,10.83354489,144.52,144.5,6.16]
[1750742911036,5.66626126,144.52,144.5,6.16]
[1750742911327,5.66626126,144.56,144.51,5.66626126]
[1750742911520,5.66626126,144.57,144.53,5.66626126]
[1750742911829,5.66626126,144.57,144.52,5.66626126]
[1750742911830,5.66626126,144.56,144.52,5.66626126]
[1750742912018,5.66626126,144.54,144.51,89.4]
[1750742912420,10.8301417,144.54,144.51,89.4]
[1750742912629,5.66626126,144.54,144.51,89.4]
[1750742913431,10.8301417,144.54,144.51,89.4]
[1750742913622,10.8301417,144.57,144.53,5.66626126]
[1750742913811,5.16388044,144.56,144.53,5.66626126]
[1750742914122,5.66626126,144.57,144.53,5.66626126]
[1750742914430,5.16388044,144.56,144.54,5.66626126]
[1750742914633,5.16388044,144.57,144.54,5.66626126]
[1750742915719,5.16388044,144.56,144.54,5.66626126]
[1750742916021,5.66626126,144.56,144.52,102.58694343]
[1750742916336,5.16388044,144.55,144.52,95.6676]
[1750742916506,5.16388044,144.55,144.52,101.33386126]
[1750742916830,5.66626126,144.57,144.52,101.33386126]
[1750742917033,5.16388044,144.56,144.52,101.33386126]
[1750742917326,5.16388044,144.56,144.53,34.14626126]
[1750742917909,5.16388044,144.56,144.53,28.48]
[1750742918411,5.16388044,144.56,144.53,41.06521151]
[1750742918633,5.16388044,144.57,144.53,34.14626126]
[1750742918931,5.16388044,144.56,144.53,34.14626126]
[1750742919126,5.16388044,144.55,144.53,28.48]
[1750742919334,5.16388044,144.57,144.53,41.06513647]
[1750742919518,5.16388044,144.56,144.53,41.06513647]
[1750742919712,5.16388044,144.57,144.53,41.06513647]
[1750742919927,5.16388044,144.56,144.53,41.06513647]
[1750742920128,5.16388044,144.57,144.53,41.06513647]
[1750742920337,5.16388044,144.57,144.56,5.66626126]
[1750742920510,5.16388044,144.6,144.56,40.30626126]
[1750742920834,5.16388044,144.59,144.57,5.66626126]
[1750742921034,5.16388044,144.61,144.57,5.66626126]
[1750742921242,5.16388044,144.6,144.57,5.66626126]
[1750742921546,5.16388044,144.61,144.57,5.66626126]
[1750742921756,5.16388044,144.6,144.57,12.58315221]
[1750742922055,5.16388044,144.61,144.57,12.58315221]
[1750742922220,5.16388044,144.6,144.57,12.58315221]
[1750742922421,5.16388044,144.61,144.57,12.58315221]
[1750742922740,5.16388044,144.6,144.57,12.58315221]
[1750742923551,10.8301417,144.62,144.58,5.66626126]
[1750742923721,5.16388044,144.61,144.57,12.58315221]
[1750742923925,10.8301417,144.6,144.56,40.30626126]
[1750742924155,5.16388044,144.62,144.56,41.55749275]
[1750742924321,36.8301417,144.63,144.59,5.66626126]
[1750742924520,5.66626126,144.61,144.56,132.56329275]
[1750742924721,10.8301417,144.61,144.57,5.66626126]
[1750742925021,5.66626126,144.6,144.56,34.64]
[1750742925416,10.8301417,144.6,144.56,34.64]
[1750742925630,5.66626126,144.59,144.56,34.64]
[1750742929351,5.16388044,144.61,144.56,34.64]
[1750742929521,5.66626126,144.6,144.56,34.64]
[1750742929719,5.66626126,144.59,144.56,34.64]
[1750742931323,5.66626126,144.59,144.56,41.55752896]
[1750742934750,5.16388044,144.61,144.56,47.22379022]
[1750742934952,5.66626126,144.61,144.56,47.22379022]
[1750742935258,5.66626126,144.6,144.56,47.22379022]
[1750742935432,10.8301417,144.61,144.56,47.22379022]
[1750742935755,5.66626126,144.61,144.56,47.22379022]
[1750742935938,10.8301417,144.61,144.56,47.22379022]
[1750742936140,5.66626126,144.61,144.56,47.22379022]
[1750742936345,10.8301417,144.61,144.56,47.22379022]
[1750742936530,5.66626126,144.61,144.56,47.22379022]
[1750742937434,5.66626126,144.6,144.56,47.22379022]
[1750742937657,5.16388044,144.62,144.56,47.22379022]
[1750742938043,5.66626126,144.6,144.56,47.22379022]
[1750742939044,5.66626126,144.61,144.56,47.22379022]
[1750742939562,5.16388044,144.62,144.56,47.22379022]
[1750742939734,5.66626126,144.61,144.56,47.22379022]
[1750742940063,5.66626126,144.6,144.56,47.22379022]
[1750742940292,5.66626126,144.6,144.56,41.55752896]
[1750742941166,5.16388044,144.62,144.56,41.55752896]
[1750742941348,5.66626126,144.6,144.56,41.55752896]
[1750742943158,5.66626126,144.61,144.56,47.22379022]
[1750742943967,5.66626126,144.61,144.56,41.55752896]
[1750742944271,5.66626126,144.61,144.56,47.22379022]
[1750742945940,5.16388044,144.62,144.56,47.22379022]
[1750742946134,5.16388044,144.62,144.58,5.66626126]
[1750742946349,32.45910454,144.65,144.59,28.44]
[1750742946350,5.66626126,144.63,144.59,28.44]
[1750742946939,5.66626126,144.62,144.59,28.44]
[1750742947345,5.66626126,144.6,144.58,28.44]
[1750742949153,5.16388044,144.63,144.58,28.44]
[1750742949465,5.66626126,144.6,144.58,28.44]
[1750742950172,5.66626126,144.61,144.58,28.44]
[1750742950375,10.8301417,144.61,144.58,28.44]
[1750742950578,5.66626126,144.61,144.58,28.44]
[1750742951068,10.8301417,144.61,144.58,28.44]
[1750742951242,5.66626126,144.61,144.58,28.44]
[1750742951439,5.16388044,144.62,144.58,41.02278696]
[1750742951740,16.148,144.71,144.6,5.66626126]
[1750742951741,5.16388044,144.63,144.6,5.66626126]
[1750742951942,5.16388044,144.64,144.61,28.44]
[1750742952155,5.16388044,144.63,144.61,28.44]
[1750742952344,5.16388044,144.66,144.62,6.2797]
[1750742952546,6.45910454,144.69,144.63,28.44]
[1750742952547,5.66626126,144.65,144.63,28.44]
[1750742952786,5.16388044,144.64,144.61,28.44]
[1750742952949,5.66626126,144.63,144.61,28.44]
[1750742953447,10.8301417,144.62,144.59,28.46]
[1750742953652,10.8301417,144.61,144.59,28.46]
[1750742953852,5.66626126,144.61,144.59,28.46]
[1750742954373,10.8301417,144.62,144.59,28.46]
[1750742954556,5.16388044,144.61,144.59,28.46]
[1750742954764,10.8301417,144.62,144.59,28.46]
[1750742954984,5.16388044,144.61,144.59,28.46]
[1750742955461,5.66626126,144.62,144.59,28.46]
[1750742955659,6.45910454,144.65,144.59,28.46]
[1750742955850,5.66626126,144.63,144.59,28.46]
[1750742956054,5.16813823,144.62,144.59,28.46]
[1750742956251,5.66626126,144.63,144.59,34.12626126]
[1750742956468,5.16812596,144.62,144.59,34.12626126]
[1750742956677,5.16792377,144.62,144.59,34.12626126]
[1750742956874,5.66626126,144.63,144.59,34.12626126]
[1750742957072,5.16810709,144.62,144.59,41.0422635]
[1750742957277,5.16810709,144.63,144.6,5.66626126]
[1750742957457,5.66626126,144.66,144.61,34.10626126]
[1750742957658,5.16915295,144.65,144.61,41.02137418]
[1750742957968,6.45910454,144.68,144.62,18.64964886]
[1750742958169,6.45910454,144.68,144.61,36.89421292]
[1750742958170,5.66626126,144.66,144.63,34.6]
[1750742958371,5.16751133,144.65,144.63,34.6]
[1750742958547,5.16751133,144.64,144.63,34.6]
[1750742961373,10.83377259,144.64,144.63,34.6]
[1750742961787,10.83377259,144.64,144.58,11.88866126]
[1750742962088,10.83377259,144.64,144.57,28.5]
[1750742962089,5.66626126,144.59,144.57,28.5]
[1750742962382,5.16943235,144.58,144.57,28.5]
[1750742964781,10.83569361,144.58,144.57,28.5]
[1750742965892,5.16943235,144.58,144.57,28.5]
[1750742971693,10.83569361,144.58,144.57,28.5]
[1750742972199,10.83569361,144.58,144.56,34.62]
[1750742972376,5.16943235,144.57,144.56,34.62]
[1750742972766,5.66626126,144.58,144.56,34.62]
[1750742972970,6.45910454,144.61,144.56,34.62]
[1750742973195,5.66626126,144.58,144.56,34.62]
[1750742973894,5.17229766,144.57,144.56,34.62]
[1750742974069,5.17223584,144.57,144.56,34.62]
[1750742974267,5.66626126,144.58,144.56,34.62]
[1750742976402,5.17200958,144.57,144.56,34.62]
[1750742976582,5.66626126,144.58,144.56,34.62]
[1750742977206,6.45910454,144.61,144.56,34.62]
[1750742977501,5.66626126,144.58,144.56,34.62]
[1750742978089,6.45910454,144.61,144.56,34.62]
[1750742978289,5.66626126,144.58,144.56,6.16]
[1750742978588,5.66626126,144.58,144.56,34.6]
[1750742980197,10.83811448,144.57,144.56,6.16]
[1750742984205,10.83811448,144.57,144.51,95.56]
[1750742984412,10.83811448,144.56,144.51,28.44]
[1750742984701,5.66626126,144.52,144.51,28.44]
[1750742984907,5.66626126,144.52,144.5,6.16]
[1750742985205,5.66626126,144.51,144.5,6.16]
[1750742985583,10.83811448,144.51,144.5,6.16]
[1750742985793,5.66626126,144.51,144.5,6.16]
[1750742986307,10.83811448,144.51,144.5,6.16]
[1750742986505,5.66626126,144.51,144.5,6.16]
[1750742987108,5.17185322,144.52,144.5,6.16]
[1750742987320,5.66626126,144.51,144.5,6.16]
[1750742987792,5.66626126,144.52,144.5,6.16]
[1750742988505,5.66626126,144.51,144.5,6.16]
[1750742991718,5.17185322,144.55,144.5,6.16]
[1750742991896,5.66626126,144.56,144.5,11.82626126]
[1750742991897,5.66626126,144.54,144.5,11.82626126]
[1750742992587,5.66626126,144.54,144.5,6.16]
[1750742993515,32.80065322,144.57,144.5,13.08024294]
[1750742993720,5.66626126,144.54,144.5,13.08024294]
[1750742994018,5.66626126,144.54,144.5,6.16]
[1750742995190,5.66626126,144.53,144.5,6.16]
[1750742996187,27.6288,144.57,144.5,13.08036644]
[1750742996493,5.66626126,144.53,144.5,6.16]
[1750742996926,32.80065322,144.57,144.5,6.16]
[1750742997311,5.66626126,144.53,144.5,6.16]
[1750742997737,5.17185322,144.56,144.5,6.16]
[1750742998039,5.66626126,144.53,144.5,6.16]
[1750742998643,5.66626126,144.52,144.5,6.16]
[1750743001237,10.83811448,144.56,144.5,6.16]
[1750743001238,5.66626126,144.51,144.5,6.16]
[1750743001547,5.66626126,144.51,144.47,89.4]
[1750743001731,5.66626126,144.5,144.46,53.24964886]
[1750743002116,5.66626126,144.5,144.46,24.80964886]
[1750743002320,26.0,144.54,144.48,18.64964886]
[1750743002636,5.66626126,144.52,144.48,18.64964886]
[1750743003842,5.66626126,144.53,144.49,5.66626126]
[1750743004153,6.80065322,144.57,144.5,18.64964886]
[1750743004319,5.66626126,144.55,144.5,24.31591012]
[1750743004947,5.66626126,144.52,144.49,28.44]
[1750743005115,5.66626126,144.51,144.49,28.44]
[1750743005315,5.66626126,144.5,144.47,18.64964886]
[1750743005541,5.66626126,144.5,144.46,41.52215928]
[1750743005746,5.66626126,144.5,144.47,18.64964886]
[1750743005935,5.66626126,144.5,144.47,25.57148327]
[1750743006126,5.66626126,144.51,144.47,25.57148327]
[1750743006329,5.66626126,144.51,144.47,18.64964886]
[1750743006540,5.66626126,144.5,144.47,18.64964886]
[1750743006743,5.66626126,144.5,144.46,34.6]
[1750743007216,5.66626126,144.5,144.46,6.16]
[1750743008115,5.66626126,144.5,144.46,13.08222149]
[1750743009317,5.66626126,144.5,144.46,6.16]
[1750743011954,5.66626126,144.47,144.43,34.6]
[1750743012260,5.66626126,144.46,144.43,6.16]
[1750743012432,5.66626126,144.45,144.43,6.16]
[1750743014563,5.66626126,144.44,144.43,6.16]
[1750743017050,26.0,144.47,144.43,6.16]
[1750743017234,5.66626126,144.46,144.43,6.16]
[1750743017721,5.66626126,144.45,144.43,6.16]
[1750743018122,26.0,144.47,144.43,6.16]
[1750743018321,5.66626126,144.45,144.43,6.16]
[1750743019949,5.66626126,144.44,144.43,6.16]
[1750743022052,5.66626126,144.49,144.44,18.64964886]
[1750743022233,5.66626126,144.49,144.45,5.66626126]
[1750743023137,5.66626126,144.48,144.44,18.64964886]
[1750743023656,5.66626126,144.48,144.44,24.31591012]
[1750743023837,5.66626126,144.49,144.44,24.31591012]
[1750743024041,5.66626126,144.49,144.44,31.2387964]
[1750743024830,5.66626126,144.48,144.44,31.2387964]
[1750743025029,5.66626126,144.48,144.44,18.64964886]
[1750743025230,5.66626126,144.48,144.44,25.57290187]
[1750743026451,5.66626126,144.53,144.48,18.64964886]
[1750743026749,5.66626126,144.53,144.48,52.77591012]
[1750743027533,5.66626126,144.52,144.48,52.77591012]
[1750743028052,5.66626126,144.51,144.48,35.38125943]
[1750743028355,5.66626126,144.52,144.48,35.38125943]
[1750743031661,5.66626126,144.52,144.48,28.46]
[1750743031841,5.66626126,144.51,144.46,52.79591012]
[1750743033042,5.66626126,144.51,144.46,59.71822848]
[1750743033959,10.82555192,144.51,144.47,12.58806641]
[1750743034132,5.66626126,144.51,144.47,12.58806641]
[1750743035040,5.66626126,144.51,144.47,5.66626126]
[1750743035554,10.82555192,144.51,144.47,5.66626126]
[1750743035747,5.66626126,144.51,144.46,59.71806967]
[1750743035951,10.82555192,144.5,144.46,28.48]
[1750743036277,5.66626126,144.49,144.46,28.48]
[1750743037138,5.66626126,144.49,144.44,59.69902659]
[1750743037889,5.66626126,144.49,144.44,52.77591012]
[1750743038067,5.15929066,144.5,144.44,52.77591012]
[1750743038068,10.82555192,144.48,144.44,28.46]
[1750743038273,5.66626126,144.46,144.43,6.16]
[1750743038468,5.66626126,144.44,144.39,6.16]
[1750743038654,5.66626126,144.43,144.39,34.62]
[1750743038854,5.66626126,144.42,144.39,34.62]
[1750743039366,5.66626126,144.43,144.39,41.54560921]
[1750743040060,5.66626126,144.43,144.39,47.21187047]
[1750743041268,5.15929066,144.45,144.39,47.21187047]
[1750743041441,12.56260454,144.48,144.39,47.21187047]
[1750743041442,5.66626126,144.43,144.39,47.21187047]
[1750743043579,5.66626126,144.46,144.41,5.66626126]
[1750743043756,5.66626126,144.46,144.42,34.12626126]
[1750743044455,5.66626126,144.46,144.42,28.46]
[1750743051082,5.66626126,144.45,144.42,28.46]
[1750743052573,5.15929066,144.48,144.42,41.0503967]
[1750743052762,5.15929066,144.47,144.43,24.31591012]
[1750743053296,10.82555192,144.48,144.43,24.31591012]
[1750743053986,5.15929066,144.48,144.43,24.31591012]
[1750743054164,10.82555192,144.48,144.43,24.31591012]
[1750743054687,10.82555192,144.48,144.43,31.23946627]
[1750743055650,5.66626126,144.49,144.45,18.64964886]
[1750743055849,10.82555192,144.49,144.45,18.64964886]
[1750743056080,5.66626126,144.49,144.45,18.64964886]
[1750743056286,10.82555192,144.49,144.45,18.64964886]
[1750743056480,5.66626126,144.49,144.45,18.64964886]
[1750743056659,5.15929066,144.49,144.44,101.98937246]
[1750743056850,5.66626126,144.49,144.44,101.98937246]
[1750743057053,10.82555192,144.49,144.44,101.98937246]
[1750743057275,5.66626126,144.49,144.44,96.3231112]
[1750743057476,5.15929066,144.48,144.45,28.46]
[1750743057963,10.82555192,144.48,144.45,28.46]
[1750743058469,33.7786,144.51,144.45,41.04894961]
[1750743058673,1.5547,144.51,144.47,5.66626126]
[1750743058868,5.66626126,144.52,144.47,5.66626126]
[1750743059067,5.66626126,144.53,144.48,5.66626126]
[1750743059293,5.66626126,144.53,144.48,34.12626126]
[1750743059468,5.16872963,144.51,144.48,34.12626126]
[1750743060073,5.16872963,144.51,144.48,41.04741867]
[1750743060477,5.16872963,144.51,144.49,24.31591012]
[1750743060683,5.16872963,144.51,144.5,5.66626126]
[1750743061186,5.16872963,144.52,144.5,5.66626126]
[1750743061382,5.16872963,144.52,144.49,18.64964886]
[1750743061556,5.16872963,144.52,144.5,5.66626126]
[1750743062059,7.24376126,144.55,144.5,12.5866373]
[1750743064181,1.5775,144.55,144.5,12.5866373]
[1750743064374,5.66626126,144.56,144.52,5.66626126]
[1750743064759,26.0,144.58,144.52,5.66626126]
[1750743064967,5.66626126,144.58,144.53,5.66626126]
[1750743065386,5.66626126,144.58,144.52,18.64964886]
[1750743065582,5.66626126,144.58,144.54,5.66626126]
[1750743065774,5.66626126,144.58,144.52,18.64964886]
[1750743065994,5.16339537,144.57,144.53,5.66626126]
[1750743066284,5.16339537,144.57,144.53,12.58495339]
[1750743066468,5.16339537,144.58,144.54,5.66626126]
[1750743067077,5.16339537,144.58,144.55,24.31591012]
[1750743067385,10.82965663,144.62,144.57,5.66626126]
[1750743067681,10.82965663,144.62,144.57,6.16]
[1750743067920,5.66626126,144.61,144.57,11.82626126]
[1750743068288,5.66626126,144.59,144.57,6.16]
[1750743068586,5.66626126,144.6,144.57,6.16]
[1750743070274,5.66626126,144.59,144.57,6.16]
[1750743070471,5.66626126,144.58,144.57,6.16]
[1750743070682,5.66626126,144.58,144.53,5.66626126]
[1750743070987,5.66626126,144.57,144.53,34.6]
[1750743072082,37.27499537,144.61,144.53,34.6]
[1750743072278,5.66626126,144.57,144.53,34.6]
[1750743073692,5.66626126,144.57,144.52,12.58566747]
[1750743073876,5.66626126,144.57,144.53,28.44]
[1750743074998,32.1116,144.61,144.53,28.44]
[1750743075199,5.66626126,144.57,144.53,28.44]
[1750743075427,32.1116,144.61,144.53,28.44]
[1750743075706,5.66626126,144.57,144.53,28.44]
[1750743076082,5.66626126,144.57,144.53,34.10626126]
[1750743077596,5.66626126,144.57,144.53,28.44]
[1750743077775,5.66626126,144.57,144.53,34.10626126]
[1750743079307,32.1116,144.61,144.53,34.10626126]
[1750743079500,5.66626126,144.57,144.53,34.10626126]
[1750743080778,32.1116,144.61,144.53,28.44]
[1750743080977,5.66626126,144.57,144.53,28.44]
[1750743081404,5.66626126,144.55,144.48,89.4]
[1750743081583,27.5636,144.57,144.48,124.0]
[1750743081584,5.66626126,144.52,144.48,124.0]
[1750743081901,5.66626126,144.5,144.48,6.16]
[1750743082104,5.66626126,144.49,144.43,6.16]
[1750743082295,5.66626126,144.47,144.43,34.6]
[1750743082802,5.66626126,144.48,144.43,47.1899383]
[1750743083597,5.66626126,144.47,144.43,40.26626126]
[1750743083909,26.0,144.54,144.45,18.64964886]
[1750743084074,5.66626126,144.52,144.47,24.31591012]
[1750743084277,5.66626126,144.52,144.48,5.66626126]
[1750743084701,5.66626126,144.52,144.47,24.31591012]
[1750743085488,5.66626126,144.52,144.47,31.23749619]
[1750743086398,26.0,144.54,144.47,31.23749619]
[1750743086594,5.66626126,144.52,144.47,31.23749619]
[1750743090016,5.66626126,144.51,144.47,25.57123493]
[1750743090318,5.66626126,144.52,144.47,24.31591012]
[1750743090501,5.66626126,144.51,144.47,18.64964886]
[1750743091413,5.66626126,144.51,144.47,25.57146709]
[1750743092212,26.0,144.54,144.46,35.36220699]
[1750743092411,5.66626126,144.5,144.46,35.36220699]
[1750743092922,5.66626126,144.5,144.46,28.44]
[1750743093092,5.66626126,144.5,144.46,35.36228053]
[1750743093293,5.66626126,144.51,144.46,41.02854179]
[1750743094719,5.66626126,144.49,144.46,28.44]
[1750743094896,5.66626126,144.5,144.46,28.44]
[1750743095616,5.66626126,144.5,144.47,28.54]
[1750743096106,5.66626126,144.51,144.47,28.54]
[1750743096306,5.66626126,144.5,144.47,28.52]
[1750743098812,5.66626126,144.49,144.47,28.52]
[1750743100926,5.66626126,144.48,144.44,28.52]
[1750743101222,5.66626126,144.47,144.44,28.52]
[1750743101411,5.66626126,144.46,144.43,34.7]
[1750743102510,5.66626126,144.46,144.43,6.2]
[1750743102714,5.66626126,144.46,144.44,28.5]
[1750743104319,5.66626126,144.46,144.43,6.2]
[1750743104655,5.66626126,144.44,144.38,63.52964886]
[1750743104949,5.66626126,144.41,144.38,79.58]
[1750743105148,5.66626126,144.41,144.38,51.08]
[1750743105309,5.66626126,144.41,144.38,79.58]
[1750743105512,5.66626126,144.39,144.38,6.2]
[1750743105827,31.66626126,144.39,144.34,6.2]
[1750743106132,5.66626126,144.36,144.34,6.2]
[1750743106722,5.66626126,144.36,144.29,26.0]
[1750743106723,5.66626126,144.35,144.29,11.86626126]
[1750743106921,5.66626126,144.33,144.3,28.52]
[1750743107531,5.66626126,144.33,144.3,18.64964886]
[1750743107731,5.66626126,144.33,144.3,47.22964886]
[1750743108305,26.0,144.36,144.3,54.15964895]
[1750743108521,26.0,144.36,144.32,5.66626126]
[1750743108522,5.66626126,144.36,144.32,5.66626126]
[1750743108905,5.66626126,144.36,144.31,5.66626126]
[1750743109106,5.66626126,144.35,144.31,5.66626126]
[1750743109321,5.66626126,144.34,144.3,54.15964895]
[1750743110949,26.0,144.38,144.3,54.15964895]
[1750743111253,5.66626126,144.34,144.3,54.15964895]
[1750743111638,5.66626126,144.34,144.3,59.82591021]
[1750743112144,26.0,144.38,144.3,59.82591021]
[1750743112327,5.66626126,144.35,144.3,59.82591021]
[1750743113749,5.66626126,144.35,144.3,149.22591021]